fUSD/lending_fUSD_20260128
["ID","MTS","AMOUNT","RATE_DAILY","PERIOD"]
[403828083,1769569840440,-500.0,0.00016565,2]
[403828084,1769569840449,-500.0,0.00016565,2]
[403828085,1769569840458,-500.0,0.00016565,2]
[403828086,1769569840467,-500.0,0.00016565,2]
[403828087,1769569840476,-500.0,0.00016565,2]
[403828088,1769569840485,-500.0,0.00016565,2]
[403828089,1769569840494,-500.0,0.00016565,2]
[403828090,1769569840503,-500.0,0.00016565,2]
[403828091,1769569840512,-500.0,0.00016565,2]
[403828092,1769569840522,-500.0,0.00016565,2]
[403828093,1769569840531,-500.0,0.00016565,2]
[403828094,1769569840540,-645.99079635,0.00016565,2]
[403828095,1769569840549,-500.0,0.00016565,2]
[403828096,1769569840559,-500.0,0.00016565,2]
[403828097,1769569840568,-500.0,0.00016565,2]
[403828099,1769569840577,-500.0,0.00016565,2]
[403828101,1769569840587,-620.0,0.00016565,2]
[403828103,1769569840596,-500.0,0.00016565,2]
[403828104,1769569840606,-500.0,0.00016565,2]
[403828105,1769569840614,-500.0,0.00016565,2]
[403828107,1769569840624,-500.0,0.00016565,2]
[403828108,1769569840633,-500.0,0.00016565,2]
[403828111,1769569840652,-500.0,0.00016565,2]
[403828113,1769569840662,-500.0,0.00016565,2]
[403828114,1769569840672,-500.0,0.00016565,2]
[403828115,1769569840681,-500.0,0.00016565,2]
[403828116,1769569840691,-500.0,0.00016565,2]
[403828117,1769569840700,-500.0,0.00016565,2]
[403828118,1769569840709,-500.0,0.00016565,2]
[403828119,1769569840719,-500.0,0.00016565,2]
[403828120,1769569840728,-500.0,0.00016565,2]
[403828121,1769569840737,-500.0,0.00016565,2]
[403828122,1769569840746,-500.0,0.00016565,2]
[403828123,1769569840755,-500.0,0.00016565,2]
[403828125,1769569840765,-500.0,0.00016565,2]
[403828127,1769569840774,-500.0,0.00016565,2]
[403828129,1769569840783,-500.0,0.00016565,2]
[403828131,1769569840793,-500.0,0.00016565,2]
[403828133,1769569840802,-500.0,0.00016565,2]
[403828135,1769569840811,-157.70154483,0.00016565,2]
[403828137,1769569840821,-500.0,0.00016565,2]
[403828139,1769569840830,-500.0,0.00016565,2]
[403828141,1769569840839,-500.0,0.00016565,2]
[403828142,1769569840848,-500.0,0.00016565,2]
[403828143,1769569840857,-500.0,0.00016565,2]
[403828144,1769569840867,-500.0,0.00016565,2]
[403828145,1769569840877,-500.0,0.00016565,2]
[403828146,1769569840887,-500.0,0.00016565,2]
[403828147,1769569840896,-500.0,0.00016565,2]
[403828148,1769569840906,-500.0,0.00016565,2]
[403828149,1769569840918,-500.0,0.00016565,2]
[403828150,1769569840928,-500.0,0.00016565,2]
[403828151,1769569840937,-500.0,0.00016565,2]
[403828152,1769569840947,-500.0,0.00016565,2]
[403828153,1769569840957,-500.0,0.00016565,2]
[403828154,1769569840966,-500.0,0.00016565,2]
[403828155,1769569840976,-500.0,0.00016565,2]
[403828156,1769569840986,-500.0,0.00016565,2]
[403828157,1769569840995,-500.0,0.00016565,2]
[403828158,1769569841005,-500.0,0.00016565,2]
[403828159,1769569841015,-500.0,0.00016565,2]
[403828160,1769569841024,-500.0,0.00016565,2]
[403828161,1769569841033,-500.0,0.00016565,2]
[403828162,1769569841043,-500.0,0.00016565,2]
[403828163,1769569841052,-500.0,0.00016565,2]
[403828164,1769569841061,-500.0,0.00016565,2]
[403828165,1769569841071,-500.0,0.00016565,2]
[403828166,1769569841081,-500.0,0.00016565,2]
[403828167,1769569841090,-500.0,0.00016565,2]
[403828168,1769569841099,-500.0,0.00016565,2]
[403828169,1769569841108,-500.0,0.00016565,2]
[403828170,1769569841118,-500.0,0.00016565,2]
[403828171,1769569841127,-500.0,0.00016565,2]
[403828172,1769569841136,-500.0,0.00016565,2]
[403828173,1769569841145,-500.0,0.00016565,2]
[403828174,1769569841155,-500.0,0.00016565,2]
[403828175,1769569841164,-300.0,0.00016565,2]
[403828176,1769569841173,-500.0,0.00016565,2]
[403828177,1769569841182,-500.0,0.00016565,2]
[403828178,1769569841191,-500.0,0.00016565,2]
[403828179,1769569841201,-500.0,0.00016565,2]
[403828180,1769569841212,-500.0,0.00016565,2]
[403828181,1769569841223,-500.0,0.00016565,2]
[403828182,1769569841232,-3570.83185239,0.00016566,2]
[403828183,1769569841242,-89210.7166,0.00016596,2]
[403828184,1769569841251,-1318.17031665,0.00016612,2]
[403828185,1769569841260,-641.38,0.00016621,2]
[403828186,1769569841272,-2767.3275,0.00016623,2]
[403828187,1769569841282,-161.0053,0.00016624,2]
[403828188,1769569841291,-2500.0,0.00016624,2]
[403828189,1769569841301,-6305.12400023,0.00016696,2]
[403828190,1769569841311,-5429.21378605,0.00016696,2]
[403828191,1769569841321,-177.93699463,0.00016723,5]
[403828192,1769569841331,-1113.29347799,0.00016723,5]
[403828193,1769569841340,-1113.293478,0.00016723,5]
[403828194,1769569841350,-1397.96,0.00016723,2]
[403828195,1769569841361,-1397.96,0.00016723,2]
[403828196,1769569841370,-1397.96,0.00016723,2]
[403828197,1769569841380,-1397.96,0.00016723,2]
[403828198,1769569841389,-1397.96,0.00016723,2]
[403828199,1769569841398,-1397.96,0.00016723,2]
[403828200,1769569841409,-1397.96,0.00016723,2]
[403828201,1769569841420,-1397.96,0.00016723,2]
[403828202,1769569841429,-1397.96,0.00016723,2]
[403828203,1769569841438,-1397.96,0.00016723,2]
[403828204,1769569841448,-1397.96,0.00016723,2]
[403828205,1769569841458,-1397.96,0.00016723,2]
[403828206,1769569841467,-1397.96,0.00016723,2]
[403828207,1769569841477,-1397.96,0.00016723,2]
[403828208,1769569841487,-1397.96,0.00016723,2]
[403828209,1769569841496,-1397.96,0.00016723,2]
[403828210,1769569841507,-1397.96,0.00016723,2]
[403828211,1769569841516,-1397.96,0.00016723,2]
[403828212,1769569841525,-1397.96,0.00016723,2]
[403828213,1769569841535,-1397.96,0.00016723,2]
[403828214,1769569841544,-1397.96,0.00016723,2]
[403828215,1769569841553,-1397.96,0.00016723,2]
[403828216,1769569841562,-1397.96,0.00016723,2]
[403828217,1769569841572,-1398.1414044,0.00016723,2]
[403828218,1769569841581,-513.68697496,0.00016723,2]
[403828219,1769569841591,-504.1508484,0.00016723,2]
[403828220,1769569841600,-500.0,0.00016723,2]
[403828221,1769569841609,-500.0,0.00016723,2]
[403828222,1769569841619,-500.0,0.00016723,2]
[403828223,1769569841629,-524.93822417,0.00016723,2]
[403828224,1769569841638,-544.60815205,0.00016723,2]
[403828225,1769569841649,-500.0,0.00016723,2]
[403828226,1769569841658,-578.39080156,0.00016723,2]
[403828227,1769569841668,-997.96,0.00016723,2]
[403828228,1769569841678,-997.96,0.00016723,2]
[403828229,1769569841687,-997.96,0.00016723,2]
[403828230,1769569841697,-997.96,0.00016723,2]
[403828231,1769569841707,-997.96,0.00016723,2]
[403828232,1769569841718,-997.96,0.00016723,2]
[403828233,1769569841727,-997.96,0.00016723,2]
[403828234,1769569841737,-997.96,0.00016723,2]
[403828235,1769569841747,-997.96,0.00016723,2]
[403828236,1769569841756,-997.96,0.00016723,2]
[403828237,1769569841766,-997.96,0.00016723,2]
[403828238,1769569841776,-997.96,0.00016723,2]
[403828239,1769569841787,-997.96,0.00016723,2]
[403828240,1769569841796,-997.96,0.00016723,2]
[403828241,1769569841806,-997.96,0.00016723,2]
[403828242,1769569841815,-997.96,0.00016723,2]
[403828243,1769569841825,-997.96,0.00016723,2]
[403828244,1769569841834,-997.96,0.00016723,2]
[403828245,1769569841843,-997.96,0.00016723,2]
[403828246,1769569841853,-997.96,0.00016723,2]
[403828247,1769569841862,-997.96,0.00016723,2]
[403828248,1769569841874,-997.96,0.00016723,2]
[403828249,1769569841884,-997.96,0.00016723,2]
[403828250,1769569841893,-998.12,0.00016723,2]
[403828251,1769569841903,-13998.35686924,0.00016796,2]
[403828252,1769569841914,-500.0,0.00016797,2]
[403828253,1769569841924,-6305.12400015,0.0001683,2]
[403828254,1769569841934,-5429.21378596,0.0001683,2]
[403828255,1769569841943,-641.38,0.00016895,2]
[403828256,1769569841954,-500.0,0.00016897,2]
[403828257,1769569841965,-1300.0,0.000169,6]
[403828258,1769569841975,-9058.37508753,0.000169,2]
[403828259,1769569841986,-200.0,0.00016901,2]
[403828260,1769569841996,-502.0,0.00016904,2]
[403828261,1769569842007,-500.93042604,0.00016921,2]
[403828262,1769569842016,-193.55647902,0.00016921,2]
[403828263,1769569842026,-6305.12400015,0.00016964,2]
[403828264,1769569842035,-5429.21378596,0.00016964,2]
[403828265,1769569842045,-250.0,0.00016986,5]
[403828266,1769569842055,-250.0,0.00016986,5]
[403828267,1769569842064,-250.0,0.00016986,5]
[403828268,1769569842074,-250.0,0.00016986,5]
[403828269,1769569842084,-250.0,0.00016986,5]
[403828270,1769569842093,-250.0,0.00016986,5]
[403828271,1769569842102,-250.0,0.00016986,5]
[403828272,1769569842112,-250.0,0.00016986,5]
[403828273,1769569842123,-250.0,0.00016986,5]
[403828274,1769569842132,-250.0,0.00016986,5]
[403828275,1769569842142,-250.0,0.00016986,5]
[403828276,1769569842152,-250.0,0.00016986,5]
[403828277,1769569842162,-250.0,0.00016986,5]
[403828278,1769569842171,-250.0,0.00016986,5]
[403828279,1769569842181,-250.0,0.00016986,5]
[403828280,1769569842190,-250.0,0.00017,2]
[403828281,1769569842200,-166.66,0.00017079,2]
[403828282,1769569842209,-6305.12400015,0.00017097,2]
[403828283,1769569842219,-5429.21378596,0.00017097,2]
[403828284,1769569842228,-151.0,0.00017099,2]
[403828285,1769569842238,-578.20924308,0.00017099,2]
[403828286,1769569842247,-500.0,0.00017099,2]
[403828287,1769569842256,-500.0,0.00017099,2]
[403828288,1769569842266,-500.0,0.00017099,2]
[403828289,1769569842275,-500.0,0.00017099,2]
[403828290,1769569842284,-500.0,0.00017099,2]
[403828291,1769569842294,-500.0,0.00017099,2]
[403828292,1769569842303,-500.0,0.00017099,2]
[403828293,1769569842312,-500.0,0.00017099,2]
[403828294,1769569842321,-500.0,0.00017099,2]
[403828295,1769569842331,-500.0,0.00017099,2]
[403828296,1769569842340,-500.0,0.00017099,2]
[403828297,1769569842349,-500.0,0.00017099,2]
[403828298,1769569842359,-500.0,0.00017099,2]
[403828299,1769569842368,-500.0,0.00017099,2]
[403828300,1769569842377,-500.0,0.00017099,2]
[403828301,1769569842387,-500.0,0.00017099,2]
[403828302,1769569842747,-500.0,0.00017099,2]
[403828303,1769569842757,-500.0,0.00017099,2]
[403828304,1769569842767,-500.0,0.00017099,2]
[403828305,1769569842776,-500.0,0.00017099,2]
[403828306,1769569842785,-500.0,0.00017099,2]
[403828307,1769569842795,-250.0,0.00017099,2]
[403828308,1769569842804,-500.0,0.00017099,2]
[403828309,1769569842814,-250.0,0.00017099,2]
[403828310,1769569842823,-1000.0,0.00017099,2]
[403828311,1769569842832,-250.0,0.00017099,2]
[403828312,1769569842842,-1000.0,0.00017099,2]
[403828313,1769569842852,-250.0,0.00017099,2]
[403828314,1769569842862,-250.0,0.00017099,2]
[403828315,1769569842872,-250.0,0.00017099,2]
[403828316,1769569842882,-250.0,0.00017099,2]
[403828317,1769569842892,-250.0,0.00017099,2]
[403828318,1769569842902,-250.0,0.00017099,2]
[403828319,1769569842914,-250.0,0.00017099,2]
[403828320,1769569842924,-250.0,0.00017099,2]
[403828321,1769569842935,-250.0,0.00017099,2]
[403828322,1769569842945,-174.61919141,0.00017099,2]
[403828323,1769569842958,-250.0,0.00017099,2]
[403828324,1769569842968,-250.0,0.00017099,2]
[403828326,1769569842977,-854.2589148,0.00017099,2]
[403828327,1769569842988,-250.0,0.00017099,2]
[403828328,1769569842999,-250.0,0.00017099,2]
[403828329,1769569843008,-250.0,0.00017099,2]
[403828330,1769569843019,-250.0,0.00017099,2]
[403828331,1769569843029,-250.0,0.00017099,2]
[403828332,1769569843039,-250.0,0.00017099,2]
[403828333,1769569843051,-209.40437684,0.00017099,2]
[403828334,1769569843062,-250.0,0.00017099,2]
[403828335,1769569843073,-250.0,0.00017099,2]
[403828336,1769569843083,-250.0,0.00017099,2]
[403828337,1769569843094,-250.0,0.00017099,2]
[403828338,1769569843103,-250.0,0.00017099,2]
[403828339,1769569843112,-322.6107,0.00017099,2]
[403828340,1769569843122,-250.0,0.00017099,2]
[403828342,1769569843132,-250.0,0.00017099,2]
[403828343,1769569843142,-250.0,0.00017099,2]
[403828345,1769569843151,-937.52,0.00017112,2]
[403828347,1769569843159,-217.15233878,0.00017154,2]
[403828349,1769569843169,-641.38,0.00017169,2]
[403828351,1769569843178,-355.21403355,0.00017197,2]
[403828353,1769569843187,-511.31408016,0.00017197,2]
[403828355,1769569843196,-225.18697532,0.00017209,2]
[403828357,1769569843205,-6305.12400015,0.00017231,2]
[403828359,1769569843214,-5429.21378596,0.00017231,2]
[403828361,1769569843224,-233.51889341,0.00017264,2]
[403828363,1769569843233,-1954.0,0.00017293,2]
[403828365,1769569843243,-242.15909246,0.00017319,2]
[403828367,1769569843252,-150.00569849,0.00017332,2]
[403828369,1769569843261,-6305.12400015,0.00017365,2]
[403828371,1769569843270,-5429.21378596,0.00017365,2]
[403828373,1769569843279,-1954.0,0.00017365,2]
[403828375,1769569843288,-251.11897888,0.00017374,2]
[403828377,1769569843297,-1954.0,0.00017398,2]
[403828379,1769569843306,-457.0,0.00017403,2]
[403828380,1769569843315,-260.4103811,0.00017429,2]
[403828381,1769569843324,-180.48876966,0.00017439,2]
[403828382,1769569843333,-250.0,0.00017443,2]
[403828383,1769569843342,-2606.79596936,0.00017443,2]
[403828384,1769569843351,-195.0,0.00017443,2]
[403828385,1769569843360,-2500.0,0.00017443,2]
[403828386,1769569843370,-195.0,0.00017443,2]
[403828388,1769569843379,-170.39037069,0.00017443,2]
[403828390,1769569843388,-195.0,0.00017443,2]
[403828392,1769569843398,-193.0,0.00017443,2]
[403828394,1769569843407,-657.88569144,0.00017443,2]
[403828396,1769569843416,-641.38,0.00017443,2]
[403828398,1769569843425,-270.0455652,0.00017484,2]
[403828400,1769569843435,-310.58401092,0.00017489,2]
[403828402,1769569843444,-4832.0,0.00017495,2]
[403828404,1769569843453,-2443.0,0.00017495,2]
[403828406,1769569843462,-6572.0,0.00017495,2]
[403828408,1769569843471,-6305.12400015,0.00017499,2]
[403828410,1769569843480,-5429.21378596,0.00017499,2]
[403828412,1769569843489,-2600.0,0.000175,6]
[403828414,1769569843498,-280.03725112,0.00017539,2]
[403828416,1769569843508,-1954.0,0.00017574,2]
[403828419,1769569843519,-500.0,0.00017589,2]
[403828421,1769569843529,-150.0,0.00017589,2]
[403828423,1769569843539,-500.0,0.00017589,2]
[403828425,1769569843549,-500.0,0.00017589,2]
[403828427,1769569843558,-500.0,0.00017589,2]
[403828428,1769569843568,-500.0,0.00017589,2]
[403828429,1769569843577,-150.0,0.00017589,2]
[403828430,1769569843587,-150.0,0.00017589,2]
[403828431,1769569843596,-150.0,0.00017589,2]
[403828432,1769569843606,-290.82383437,0.00017589,2]
[403828433,1769569843615,-235.87046984,0.00017589,2]
[403828434,1769569843625,-500.0,0.00017589,2]
[403828435,1769569843635,-500.0,0.00017589,2]
[403828436,1769569843644,-500.0,0.00017589,2]
[403828437,1769569843654,-500.0,0.00017589,2]
[403828438,1769569843663,-500.0,0.00017589,2]
[403828439,1769569843675,-150.0,0.00017589,2]
[403828440,1769569843686,-500.0,0.00017589,2]
[403828441,1769569843695,-150.0,0.00017589,2]
[403828442,1769569843704,-500.0,0.00017589,2]
[403828443,1769569843714,-150.0,0.00017589,2]
[403828444,1769569843723,-150.0,0.00017589,2]
[403828445,1769569843733,-150.0,0.00017589,2]
[403828446,1769569843742,-500.0,0.00017589,2]
[403828447,1769569843752,-150.0,0.00017589,2]
[403828448,1769569843762,-500.0,0.00017589,2]
[403828449,1769569843771,-150.0,0.00017589,2]
[403828450,1769569843780,-150.0,0.00017589,2]
[403828451,1769569843789,-500.0,0.00017589,2]
[403828452,1769569843798,-500.0,0.00017589,2]
[403828453,1769569843807,-150.0,0.00017589,2]
[403828454,1769569843817,-150.0,0.00017589,2]
[403828455,1769569843826,-150.0,0.00017589,2]
[403828456,1769569843835,-290.39862941,0.00017594,2]
[403828457,1769569843844,-3900.0,0.000176,6]
[403828458,1769569843853,-457.0,0.00017619,2]
[403828459,1769569843863,-6305.12400015,0.00017632,2]
[403828460,1769569843875,-5429.21378596,0.00017632,2]
[403828461,1769569843884,-674.63684387,0.0001764,2]
[403828462,1769569843894,-500.0,0.00017644,2]
[403828463,1769569843903,-250.27618672,0.00017644,2]
[403828464,1769569843923,-500.0,0.00017644,2]
[403828465,1769569843932,-500.0,0.00017644,2]
[403828466,1769569843942,-500.0,0.00017644,2]
[403828467,1769569843951,-500.0,0.00017644,2]
[403828468,1769569843960,-150.0,0.00017644,2]
[403828469,1769569843969,-150.0,0.00017644,2]
[403828470,1769569843979,-251.02717303,0.00017644,2]
[403828471,1769569843988,-500.0,0.00017644,2]
[403828472,1769569843997,-500.0,0.00017644,2]
[403828473,1769569844007,-500.0,0.00017644,2]
[403828474,1769569844018,-500.0,0.00017644,2]
[403828475,1769569844029,-500.0,0.00017644,2]
[403828476,1769569844039,-500.0,0.00017644,2]
[403828477,1769569844049,-249.13238104,0.00017644,2]
[403828478,1769569844060,-150.0,0.00017644,2]
[403828479,1769569844073,-500.0,0.00017644,2]
[403828480,1769569844083,-150.0,0.00017644,2]
[403828481,1769569844094,-150.0,0.00017644,2]
[403828482,1769569844105,-150.63660336,0.00017644,2]
[403828483,1769569844115,-500.0,0.00017644,2]
[403828484,1769569844128,-150.0,0.00017644,2]
[403828485,1769569844137,-500.0,0.00017644,2]
[403828486,1769569844147,-197.67895854,0.00017644,2]
[403828487,1769569844157,-500.0,0.00017644,2]
[403828488,1769569844167,-356.9240002,0.00017644,2]
[403828489,1769569844177,-150.0,0.00017644,2]
[403828490,1769569844186,-181.08010149,0.00017647,2]
[403828491,1769569844197,-885.86649465,0.00017647,2]
[403828492,1769569844207,-1000.0,0.00017649,2]
[403828493,1769569844217,-1000.0,0.00017649,2]
[403828494,1769569844227,-301.1433787,0.00017649,2]
[403828495,1769569844236,-292.10033331,0.00017673,2]
[403828497,1769569844245,-770.8574011,0.00017673,2]
[403828499,1769569844253,-1359.88382818,0.00017673,2]
[403828501,1769569844262,-2034.30487765,0.00017673,2]
[403828503,1769569844271,-2752.4772,0.00017673,2]
[403828505,1769569844280,-500.0,0.00017699,2]
[403828506,1769569844290,-500.0,0.00017699,2]
[403828507,1769569844299,-328.0,0.00017699,2]
[403828508,1769569844308,-500.0,0.00017699,2]
[403828509,1769569844317,-500.0,0.00017699,2]
[403828510,1769569844327,-195.40506936,0.00017699,2]
[403828512,1769569844336,-150.0,0.00017699,2]
[403828513,1769569844346,-500.0,0.00017699,2]
[403828514,1769569844356,-500.0,0.00017699,2]
[403828515,1769569844366,-500.0,0.00017699,2]
[403828516,1769569844375,-500.0,0.00017699,2]
[403828517,1769569844385,-500.0,0.00017699,2]
[403828518,1769569844394,-500.0,0.00017699,2]
[403828519,1769569844404,-261.51199107,0.00017699,2]
[403828520,1769569844413,-500.0,0.00017699,2]
[403828521,1769569844422,-150.0,0.00017699,2]
[403828522,1769569844432,-214.10627264,0.00017699,2]
[403828523,1769569844444,-500.0,0.00017699,2]
[403828524,1769569844454,-150.0,0.00017699,2]
[403828525,1769569844464,-533.53008935,0.00017699,2]
[403828526,1769569844473,-500.0,0.00017699,2]
[403828527,1769569844482,-203.2521373,0.00017699,2]
[403828528,1769569844491,-5200.0,0.000177,6]
[403828529,1769569844500,-937.52,0.00017709,2]
[403828530,1769569844510,-641.38,0.00017717,2]
[403828531,1769569844520,-500.0,0.00017753,2]
[403828532,1769569844529,-500.0,0.00017753,2]
[403828533,1769569844538,-500.0,0.00017753,2]
[403828534,1769569844547,-500.0,0.00017753,2]
[403828535,1769569844556,-250.0,0.00017753,2]
[403828536,1769569844566,-500.0,0.00017753,2]
[403828537,1769569844575,-500.0,0.00017753,2]
[403828538,1769569844584,-500.0,0.00017753,2]
[403828539,1769569844593,-566.04897556,0.00017753,2]
[403828540,1769569844602,-500.0,0.00017753,2]
[403828541,1769569844612,-500.0,0.00017753,2]
[403828542,1769569844622,-241.78692632,0.00017753,2]
[403828543,1769569844633,-165.90736041,0.00017753,2]
[403828544,1769569844642,-500.0,0.00017753,2]
[403828545,1769569844652,-150.0,0.00017753,2]
[403828546,1769569844661,-500.0,0.00017753,2]
[403828547,1769569844671,-166.66,0.00017756,2]
[403828548,1769569844680,-6305.12400015,0.00017766,2]
[403828549,1769569844689,-5429.21378596,0.00017766,2]
[403828550,1769569844699,-457.0,0.00017774,2]
[403828551,1769569844708,-457.0,0.00017775,2]
[403828552,1769569844718,-480.611,0.00017788,2]
[403828553,1769569844727,-6600.0,0.000178,6]
[403828554,1769569844737,-515.28066526,0.00017807,2]
[403828555,1769569844747,-500.0,0.00017808,2]
[403828556,1769569844756,-500.0,0.00017808,2]
[403828557,1769569844766,-500.0,0.00017808,2]
[403828558,1769569844775,-500.0,0.00017808,2]
[403828559,1769569844785,-500.0,0.00017808,2]
[403828560,1769569844794,-565.69115399,0.00017808,2]
[403828561,1769569844803,-500.0,0.00017808,2]
[403828562,1769569844812,-500.0,0.00017808,2]
[403828563,1769569844822,-500.0,0.00017808,2]
[403828564,1769569844831,-502.04160627,0.00017808,2]
[403828565,1769569844840,-150.0,0.00017808,2]
[403828566,1769569844850,-500.0,0.00017808,2]
[403828567,1769569844859,-877.25345748,0.00017814,2]
[403828568,1769569844868,-906.62267,0.0001782,2]
[403828569,1769569844877,-906.62267,0.0001782,2]
[403828570,1769569844887,-906.62267,0.0001782,2]
[403828571,1769569844896,-906.62267,0.0001782,2]
[403828572,1769569844905,-500.0,0.00017863,2]
[403828573,1769569844919,-500.0,0.00017863,2]
[403828574,1769569844928,-301.33043874,0.00017863,2]
[403828575,1769569844938,-500.0,0.00017863,2]
[403828576,1769569844947,-500.0,0.00017863,2]
[403828577,1769569844958,-500.0,0.00017863,2]
[403828578,1769569844968,-352.06755918,0.00017863,2]
[403828579,1769569844978,-204.62121756,0.00017863,2]
[403828581,1769569844988,-500.0,0.00017863,2]
[403828583,1769569844997,-457.0,0.00017873,2]
[403828585,1769569845007,-457.0,0.0001789,2]
[403828586,1769569845017,-54563.8932288,0.00017891,2]
[403828587,1769569845027,-249.0,0.00017893,2]
[403828589,1769569845036,-1294.9884,0.000179,2]
[403828590,1769569845046,-6305.12400015,0.000179,2]
[403828591,1769569845058,-1300.0,0.000179,6]
[403828592,1769569845068,-744.85080208,0.000179,2]
[403828593,1769569845078,-217.13537466,0.000179,2]
[403828594,1769569845088,-4785.76507688,0.000179,2]
[403828595,1769569845097,-10495.0,0.000179,2]
[403828596,1769569845106,-1153.84,0.000179,2]
[403828597,1769569845115,-1691.51,0.000179,2]
[403828598,1769569845125,-500.0,0.00017918,2]
[403828599,1769569845134,-500.0,0.00017918,2]
[403828600,1769569845143,-500.0,0.00017918,2]
[403828601,1769569845152,-500.0,0.00017918,2]
[403828602,1769569845161,-269.31182315,0.00017918,2]
[403828603,1769569845171,-500.0,0.00017973,2]
[403828604,1769569845180,-363.51122534,0.00017973,2]
[403828605,1769569845189,-484.9787496,0.00017973,2]
[403828606,1769569845198,-500.0,0.00017973,2]
[403828607,1769569845208,-500.0,0.00017973,2]
[403828608,1769569845219,-150.0,0.00017973,2]
[403828609,1769569845230,-1429.0,0.00017982,2]
[403828610,1769569845240,-502.48269816,0.00017982,2]
[403828611,1769569845252,-222.7140054,0.00017982,2]
[403828612,1769569845261,-184.91554767,0.00017987,2]
[403828613,1769569845271,-184.91554767,0.0001799,2]
[403828614,1769569845280,-184.91554767,0.0001799,2]
[403828615,1769569845290,-641.39857683,0.00017991,2]
[403828616,1769569845301,-3486.1064775,0.00017997,2]
[403828617,1769569845311,-4891.3161018,0.00017997,2]
[403828618,1769569845320,-280198.9893142,0.00017997,2]
[403828619,1769569845329,-1211.0770233,0.00017997,2]
[403828620,1769569845339,-150.0,0.00017999,2]
[403828621,1769569845349,-233.54605209,0.00017999,2]
[403828622,1769569845358,-2000.0,0.00017999,2]
[403828623,1769569845368,-300.0,0.00017999,2]
[403828624,1769569845378,-300.0,0.00017999,2]
[403828625,1769569845387,-300.0,0.00017999,2]
[403828626,1769569845396,-300.0,0.00017999,2]
[403828627,1769569845405,-300.0,0.00017999,2]
[403828628,1769569845414,-666.0,0.00017999,2]
[403828629,1769569845423,-300.0,0.00017999,2]
[403828630,1769569845432,-1847844.78400607,0.00018,2]
[403828632,1769569846359,-353.47176662,0.00018,2]
[403828633,1769569846370,-360.42425931,0.00018,2]
[403828634,1769569846413,-1264.36440191,0.00018,2]
[403828635,1769569846428,-75543.94773475,0.00018,2]
[403828636,1769569846438,-670.66617603,0.00018,2]
[403828643,1769569847339,-151.0,0.00016198,2]
[403828644,1769569847349,-301.8638962,0.00016494,2]
[403828645,1769569847359,-424.7355448,0.00016494,2]
[403828646,1769569847684,-75.2644552,0.00016494,2]
[403828647,1769569847694,-196.20129918,0.00016494,2]
[403828648,1769569847705,-1.4455304,0.00016494,2]
[403828649,1769569847715,-370.64535551,0.00016494,2]
[403828650,1769569847724,-500.0,0.00016494,2]
[403828651,1769569847734,-277.33047964,0.00016494,2]
[403828689,1769570607452,166.66,0.00014968,2]
[403828739,1769570802211,823.12586766,0.0002,30]
[403828740,1769570832184,-166.66,0.00015283,2]
[403828741,1769570832217,-302.44157461,0.00015323,2]
[403828742,1769570832242,-2606.79596936,0.00015362,2]